fUSD/lending_fUSD_20240612
["ID","MTS","AMOUNT","RATE_DAILY","PERIOD"]
[329278346,1718212236974,-2436.30328484,0.000299,15]
[329278347,1718212236985,-642.15670543,0.000299,7]
[329278348,1718212236998,-642.15670543,0.000299,7]
[329278349,1718212237011,-642.15670543,0.000299,7]
[329278350,1718212237021,-642.15670543,0.000299,7]
[329278351,1718212237033,-642.15670543,0.000299,7]
[329278352,1718212237044,-642.15670543,0.000299,7]
[329278353,1718212237055,-642.15670543,0.000299,7]
[329278354,1718212237067,-642.15670543,0.000299,7]
[329278355,1718212237079,-642.15670543,0.000299,7]
[329278356,1718212237091,-642.15670543,0.000299,7]
[329278357,1718212237101,-642.15670543,0.000299,7]
[329278358,1718212237113,-642.15670543,0.000299,7]
[329278359,1718212237124,-642.15670543,0.000299,7]
[329278360,1718212237136,-642.15670543,0.000299,7]
[329278361,1718212237147,-642.15670543,0.000299,7]
[329278362,1718212237158,-642.15670543,0.000299,7]
[329278363,1718212237169,-642.15670543,0.000299,7]
[329278364,1718212237179,-642.15670543,0.000299,7]
[329278365,1718212237190,-642.15670543,0.000299,7]
[329278366,1718212237201,-642.65,0.000299,7]
[329278367,1718212237211,-2568.70182174,0.000299,7]
[329278368,1718212237223,-2568.70182174,0.000299,7]
[329278369,1718212237235,-2568.70182174,0.000299,7]
[329278370,1718212237245,-2568.70182174,0.000299,7]
[329278371,1718212237256,-2568.70182174,0.000299,7]
[329278372,1718212237268,-2568.70182174,0.000299,7]
[329278373,1718212237278,-2568.70182174,0.000299,7]
[329278374,1718212237289,-2568.70182174,0.000299,7]
[329278375,1718212237301,-2568.70182174,0.000299,7]
[329278376,1718212237312,-2568.70182174,0.000299,7]
[329278377,1718212237323,-2568.70182174,0.000299,7]
[329278378,1718212237334,-2568.70182174,0.000299,7]
[329278379,1718212237345,-2568.70182174,0.000299,7]
[329278380,1718212237356,-2568.70182174,0.000299,7]
[329278381,1718212237368,-2568.70182174,0.000299,7]
[329278382,1718212237379,-2568.70182174,0.000299,7]
[329278383,1718212237390,-2568.70182174,0.000299,7]
[329278384,1718212237400,-2568.70182174,0.000299,7]
[329278385,1718212237412,-2568.70182174,0.000299,7]
[329278386,1718212237422,-2569.2,0.000299,7]
[329278387,1718212237434,-160.61286332,0.000299,7]
[329278388,1718212237444,-160.61286332,0.000299,7]
[329278389,1718212237455,-160.61286332,0.000299,7]
[329278390,1718212237465,-160.61286332,0.000299,7]
[329278391,1718212237476,-160.61286332,0.000299,7]
[329278392,1718212237487,-160.61286332,0.000299,7]
[329278393,1718212237497,-160.61286332,0.000299,7]
[329278394,1718212237511,-160.61286332,0.000299,7]
[329278395,1718212237523,-161.11,0.000299,7]
[329278396,1718212237537,-289.17815398,0.000299,7]
[329278397,1718212237552,-289.17815398,0.000299,7]
[329278398,1718212237562,-289.17815398,0.000299,7]
[329278399,1718212237576,-289.17815398,0.000299,7]
[329278400,1718212237586,-289.17815398,0.000299,7]
[329278401,1718212237598,-289.17815398,0.000299,7]
[329278402,1718212237614,-289.17815398,0.000299,7]
[329278403,1718212237625,-289.17815398,0.000299,7]
[329278404,1718212237638,-289.17815398,0.000299,7]
[329278405,1718212237653,-289.17815398,0.000299,7]
[329278406,1718212237663,-289.17815398,0.000299,7]
[329278407,1718212237675,-289.17815398,0.000299,7]
[329278408,1718212237686,-289.17815398,0.000299,7]
[329278409,1718212237698,-289.17815398,0.000299,7]
[329278410,1718212237709,-289.17815398,0.000299,7]
[329278411,1718212237722,-289.17815398,0.000299,7]
[329278412,1718212237732,-289.17815398,0.000299,7]
[329278413,1718212237744,-289.17815398,0.000299,7]
[329278414,1718212237755,-289.17815398,0.000299,7]
[329278415,1718212237768,-289.67,0.000299,7]
[329278416,1718212237778,-172.51538549,0.000299,7]
[329278417,1718212237790,-172.51538549,0.000299,7]
[329278418,1718212237800,-172.51538549,0.000299,7]
[329278419,1718212237810,-345.05872751,0.000299,2]
[329278421,1718212237821,-172.51538549,0.000299,7]
[329278422,1718212237844,-173.01,0.000299,7]
[329278423,1718212237857,-172.59038549,0.000299,7]
[329278424,1718212237869,-172.59038549,0.000299,7]
[329278425,1718212237881,-172.59038549,0.000299,7]
[329278426,1718212237900,-172.59038549,0.000299,7]
[329278427,1718212237914,-172.59038549,0.000299,7]
[329278428,1718212237928,-172.59038549,0.000299,7]
[329278429,1718212237938,-172.59038549,0.000299,7]
[329278430,1718212237948,-172.59038549,0.000299,7]
[329278431,1718212237959,-172.59038549,0.000299,7]
[329278432,1718212237969,-172.59038549,0.000299,7]
[329278433,1718212237979,-172.59038549,0.000299,7]
[329278434,1718212237990,-172.59038549,0.000299,7]
[329278435,1718212238000,-172.59038549,0.000299,7]
[329278436,1718212238010,-172.59038549,0.000299,7]
[329278437,1718212238020,-172.59038549,0.000299,7]
[329278438,1718212238031,-172.59038549,0.000299,7]
[329278439,1718212238041,-172.59038549,0.000299,7]
[329278440,1718212238051,-172.59038549,0.000299,7]
[329278441,1718212238062,-172.59038549,0.000299,7]
[329278442,1718212238073,-173.09,0.000299,7]
[329278443,1718212238084,-629.19479763,0.000299,2]
[329278444,1718212238095,-157.34212458,0.000299,7]
[329278445,1718212238106,-157.34212458,0.000299,7]
[329278446,1718212238118,-157.34212458,0.000299,7]
[329278447,1718212238128,-157.34212458,0.000299,7]
[329278448,1718212238138,-157.34212458,0.000299,7]
[329278449,1718212238149,-157.34212458,0.000299,7]
[329278450,1718212238160,-157.34212458,0.000299,7]
[329278451,1718212238174,-157.84,0.000299,7]
[329278452,1718212238187,-251.82239933,0.000299,7]
[329278453,1718212238198,-251.82239933,0.000299,7]
[329278454,1718212238210,-251.82239933,0.000299,7]
[329278455,1718212238221,-251.82239933,0.000299,7]
[329278456,1718212238232,-251.82239933,0.000299,7]
[329278457,1718212238243,-251.82239933,0.000299,7]
[329278458,1718212238254,-251.82239933,0.000299,7]
[329278459,1718212238266,-251.82239933,0.000299,7]
[329278460,1718212238278,-251.82239933,0.000299,7]
[329278461,1718212238289,-251.82239933,0.000299,7]
[329278462,1718212238301,-251.82239933,0.000299,7]
[329278463,1718212238313,-251.82239933,0.000299,7]
[329278464,1718212238326,-251.82239933,0.000299,7]
[329278465,1718212238336,-251.82239933,0.000299,7]
[329278466,1718212238349,-251.82239933,0.000299,7]
[329278467,1718212238361,-251.82239933,0.000299,7]
[329278469,1718212238371,-251.82239933,0.000299,7]
[329278470,1718212238383,-251.82239933,0.000299,7]
[329278471,1718212238394,-251.82239933,0.000299,7]
[329278472,1718212238405,-252.32,0.000299,7]
[329278473,1718212238416,-1216.58652271,0.000299,2]
[329278474,1718212238426,-150.0,0.00029902,2]
[329278475,1718212238436,-150.0,0.0002991,2]
[329278476,1718212238448,-150.0,0.00029911,2]
[329278477,1718212238459,-150.0,0.00029913,2]
[329278478,1718212238471,-150.0,0.00029915,2]
[329278479,1718212238483,-150.0,0.00029918,2]
[329278480,1718212238493,-150.0,0.00029923,2]
[329278481,1718212238505,-150.0,0.00029924,2]
[329278482,1718212238518,-150.0,0.00029926,2]
[329278483,1718212238529,-150.0,0.00029929,2]
[329278484,1718212238544,-150.0,0.00029929,2]
[329278485,1718212238557,-150.0,0.00029935,2]
[329278486,1718212238568,-150.0,0.00029937,2]
[329278487,1718212238579,-150.0,0.0002994,2]
[329278488,1718212238590,-150.0,0.00029941,2]
[329278489,1718212238601,-1280.0,0.0002995,2]
[329278490,1718212238612,-1280.0,0.0002995,2]
[329278491,1718212238623,-1280.0,0.0002995,2]
[329278492,1718212238635,-1280.0,0.0002995,2]
[329278493,1718212238645,-1280.0,0.0002995,2]
[329278494,1718212238656,-1280.0,0.0002995,2]
[329278495,1718212238667,-1280.0,0.0002995,2]
[329278496,1718212238678,-1280.0,0.0002995,2]
[329278497,1718212238689,-1280.0,0.0002995,2]
[329278498,1718212238704,-1280.0,0.0002995,2]
[329278499,1718212238715,-150.0,0.0002995,2]
[329278500,1718212238726,-150.0,0.00029959,2]
[329278501,1718212238738,-150.0,0.0002996,2]
[329278502,1718212238748,-150.0,0.00029966,2]
[329278503,1718212238759,-150.0,0.00029966,2]
[329278504,1718212238769,-150.5,0.0002997,15]
[329278505,1718212238780,-150.5,0.0002997,15]
[329278506,1718212238790,-150.0,0.0002997,2]
[329278507,1718212238803,-150.0,0.0002997,2]
[329278508,1718212238813,-3255.02186028,0.00029971,2]
[329278509,1718212238825,-150.0,0.00029971,2]
[329278510,1718212238840,-150.5,0.0002998,15]
[329278511,1718212238851,-150.5,0.0002998,15]
[329278512,1718212238866,-153.99,0.0002998,15]
[329278513,1718212238879,-246553.46153768,0.0002998,10]
[329278514,1718212238890,-150.0,0.00029981,2]
[329278515,1718212238922,-150.0,0.00029986,2]
[329278516,1718212238933,-150.0,0.00029986,2]
[329278517,1718212238943,-182.43980573,0.00029987,2]
[329278518,1718212238954,-150.0,0.00029987,2]
[329278519,1718212238965,-150.5,0.0002999,15]
[329278520,1718212238978,-150.5,0.0002999,15]
[329278521,1718212238989,-150.5,0.0002999,15]
[329278522,1718212239000,-190.5,0.0002999,15]
[329278523,1718212239011,-152.64,0.0002999,15]
[329278524,1718212239022,-150.0,0.0002999,2]
[329278525,1718212239034,-150.0,0.00029992,2]
[329278526,1718212239049,-150.0,0.00029992,2]
[329278527,1718212239063,-30337.7176714,0.00029995,2]
[329278528,1718212239076,-6946.3596822,0.00029995,2]
[329278529,1718212239088,-1335.9828159,0.00029995,2]
[329278530,1718212239101,-925.80913718,0.00029996,30]
[329278531,1718212239114,-150.0,0.00029996,2]
[329278532,1718212239125,-1624.86434005,0.00029997,2]
[329278533,1718212239136,-1027.96715026,0.00029997,2]
[329278534,1718212239147,-621.20003601,0.00029997,2]
[329278535,1718212239158,-150.0,0.00029997,2]
[329278536,1718212239169,-484870.64575668,0.00029997,2]
[329278537,1718212239190,-413.3877717,0.00029997,2]
[329278538,1718212239207,-11286.15109958,0.00029997,2]
[329278540,1718212239225,-6882.67915909,0.00029997,2]
[329278541,1718212239240,-4147.36848739,0.00029997,2]
[329278542,1718212239252,-3270.48850594,0.00029997,2]
[329278543,1718212239267,-2082.53039875,0.00029997,2]
[329278544,1718212239285,-6855.0,0.00029997,2]
[329278545,1718212239301,-20794.34775894,0.00029997,2]
[329278546,1718212239314,-6939.76641518,0.00029997,2]
[329278567,1718212239845,-150.0,0.00029521,2]
[329278568,1718212239859,-150.0,0.00029726,2]
[329278570,1718212239875,-150.0,0.00029735,2]
[329278572,1718212239929,-150.0,0.00029736,2]
[329278574,1718212239946,-150.0,0.00029737,2]
[329278575,1718212239958,-120.6375,0.00029737,2]
[329278577,1718212239973,-29.3625,0.00029737,2]
[329278579,1718212239987,-150.0,0.00029738,2]
[329278581,1718212239999,-150.0,0.0002975,2]
[329278583,1718212240015,-150.0,0.00029755,2]
[329278585,1718212240028,-150.0,0.00029762,2]
[329278587,1718212240040,-150.0,0.00029765,2]
[329278589,1718212240053,-150.0,0.00029784,2]
[329278591,1718212240067,-150.0,0.0002979,2]
[329278593,1718212240086,-150.0,0.00029793,2]
[329278595,1718212240098,-150.0,0.00029795,2]
[329278597,1718212240112,-150.0,0.00029795,2]
[329278599,1718212240126,-150.0,0.00029795,2]
[329278601,1718212240143,-150.0,0.00029798,2]
[329278603,1718212240157,-150.0,0.00029801,2]
[329278605,1718212240179,-150.0,0.00029802,2]
[329278607,1718212240195,-150.0,0.00029803,2]
[329278609,1718212240208,-150.0,0.00029817,2]
[329278611,1718212240227,-150.0,0.00029817,2]
[329278613,1718212240241,-150.0,0.00029827,2]
[329278615,1718212240258,-150.0,0.00029827,2]
[329278617,1718212240272,-150.0,0.00029829,2]
[329278619,1718212240283,-150.0,0.00029838,2]
[329278621,1718212240297,-150.0,0.0002984,2]
[329278624,1718212240315,-150.0,0.00029841,2]
[329278626,1718212240349,-150.0,0.00029841,2]
[329278630,1718212240388,-150.0,0.00029841,2]
[329278632,1718212240401,-150.0,0.00029843,2]
[329278634,1718212240419,-150.0,0.00029843,2]
[329278636,1718212240440,-150.0,0.00029848,2]
[329278639,1718212240455,-150.0,0.00029851,2]
[329278641,1718212240469,-150.0,0.00029851,2]
[329278642,1718212240483,-150.0,0.00029869,2]
[329278644,1718212240495,-150.0,0.0002987,2]
[329278646,1718212240507,-150.0,0.00029884,2]
[329278648,1718212240518,-150.0,0.00029889,2]
[329278651,1718212240531,-150.0,0.0002989,2]
[329278653,1718212240541,-150.0,0.00029891,2]
[329278655,1718212240553,-150.0,0.00029892,2]
[329278657,1718212240565,-150.0,0.00029895,2]
[329278658,1718212240579,-150.0,0.00029896,2]
[329278660,1718212240592,-150.0,0.00029897,2]
[329278662,1718212240604,-150.0,0.00029898,2]
[329278664,1718212240616,-150.0,0.00029904,2]
[329278665,1718212240632,-150.0,0.00029905,2]
[329278666,1718212240649,-150.0,0.00029909,2]
[329278667,1718212240661,-150.0,0.00029909,2]
[329278668,1718212240673,-150.0,0.0002991,2]
[329278669,1718212240686,-150.0,0.00029913,2]
[329278670,1718212240697,-150.0,0.0002992,2]
[329278671,1718212240709,-150.0,0.00029926,2]
[329278672,1718212240722,-150.0,0.00029928,2]
[329278673,1718212240738,-150.0,0.0002993,2]
[329278674,1718212240753,-150.0,0.00029932,2]
[329278675,1718212240767,-150.0,0.00029942,2]
[329278676,1718212240778,-150.0,0.00029946,2]
[329278679,1718212240793,-150.0,0.00029947,2]
[329278681,1718212240805,-150.0,0.00029949,2]
[329278683,1718212240817,-150.0,0.00029955,2]
[329278684,1718212240827,-150.0,0.00029961,2]
[329278685,1718212240839,-150.0,0.00029968,2]
[329278687,1718212240855,-150.0,0.00029976,2]
[329278690,1718212240872,-150.0,0.00029978,2]
[329278692,1718212240896,-150.0,0.00029981,2]
[329278694,1718212240920,-150.0,0.00029983,2]
[329278696,1718212240932,-150.0,0.00029986,2]
[329278698,1718212240945,-150.0,0.00029989,2]
[329278700,1718212240960,-150.0,0.00029995,2]
[329278702,1718212240974,-14098.38598,0.00029997,2]
[329278710,1718212241051,-150.0,0.00029726,2]
[329278712,1718212241063,-150.0,0.00029746,2]
[329278714,1718212241079,-150.0,0.00029773,2]
[329278716,1718212241095,-4798.05,0.0002981,2]
[329278718,1718212241106,-150.0,0.00029823,2]
[329278720,1718212241120,-150.0,0.00029829,2]
[329278722,1718212241132,-150.0,0.00029852,2]
[329278724,1718212241148,-150.0,0.00029868,2]
[329278726,1718212241160,-150.0,0.00029901,2]
[329278728,1718212241171,-150.0,0.00029924,2]
[329278730,1718212241184,-150.0,0.00029987,2]
[329278732,1718212241196,-150.0,0.00029989,2]
[329278734,1718212241207,-749944.35966614,0.00029997,2]
[329278736,1718212241224,-397.72093095,0.00029997,2]
[329278773,1718212241733,-150.0,0.00029726,2]
[329278775,1718212241744,-150.0,0.00029743,2]
[329278777,1718212241756,-150.0,0.00029747,2]
[329278779,1718212241769,-150.0,0.00029747,2]
[329278781,1718212241780,-150.0,0.00029749,2]
[329278783,1718212241791,-42.38851349,0.00029752,2]
[329278785,1718212241808,-107.61148651,0.00029752,2]
[329278787,1718212241820,-150.0,0.00029758,2]
[329278790,1718212241834,-150.0,0.00029772,2]
[329278792,1718212241846,-5.79706193,0.00029773,2]
[329278794,1718212241862,-144.20293807,0.00029773,2]
[329278796,1718212241875,-150.0,0.00029775,2]
[329278798,1718212241887,-150.0,0.00029777,2]
[329278800,1718212241911,-150.0,0.00029785,2]
[329278802,1718212241925,-150.0,0.00029787,2]
[329278804,1718212241936,-15.91297918,0.00029793,2]
[329278806,1718212241950,-134.08702082,0.00029793,2]
[329278809,1718212241962,-150.0,0.00029794,2]
[329278811,1718212241973,-75.36872526,0.00029805,2]
[329278813,1718212241986,-74.63127474,0.00029805,2]
[329278815,1718212241997,-150.0,0.00029806,2]
[329278817,1718212242009,-150.0,0.00029808,2]
[329278819,1718212242020,-150.0,0.00029817,2]
[329278821,1718212242030,-150.0,0.00029828,2]
[329278823,1718212242040,-150.0,0.00029836,2]
[329278825,1718212242051,-150.0,0.00029846,2]
[329278827,1718212242061,-150.0,0.00029866,2]
[329278829,1718212242074,-91.52716214,0.00029872,2]
[329278831,1718212242088,-58.47283786,0.00029872,2]
[329278833,1718212242099,-150.0,0.0002988,2]
[329278835,1718212242109,-150.0,0.00029886,2]
[329278837,1718212242121,-150.0,0.00029894,2]
[329278839,1718212242132,-150.0,0.00029907,2]
[329278841,1718212242143,-150.0,0.00029913,2]
[329278843,1718212242155,-150.0,0.00029919,2]
[329278845,1718212242166,-150.0,0.00029927,2]
[329278847,1718212242177,-150.0,0.00029931,2]
[329278849,1718212242188,-150.0,0.00029939,2]
[329278851,1718212242198,-150.0,0.00029944,2]
[329278854,1718212242211,-150.0,0.00029954,2]
[329278856,1718212242221,-150.0,0.00029993,2]
[329278858,1718212242232,-150.0,0.00029993,2]
[329278860,1718212242242,-150.0,0.00029995,2]
[329278862,1718212242253,-8641.15722935,0.00029997,2]
[329278895,1718212242633,-766.161,0.00029997,2]
[329278906,1718212242749,-1034.21999995,0.00029997,2]
[329278909,1718212242763,-779.22678167,0.00029997,2]
[329278920,1718212242911,-391.41,0.0002979,10]
[329278923,1718212242925,-247.62263688,0.00029997,2]
[329279162,1718212245952,-310.0,0.00029997,2]
[329279174,1718212246086,-2879.62799778,0.00029997,2]
[329279177,1718212246100,-1641416.6054176,0.00029997,2]
[329279179,1718212246115,-150.0,0.00029997,2]
[329279181,1718212246127,-274.89751879,0.00029998,2]
[329279183,1718212246139,-300.14317843,0.00029998,2]
[329279185,1718212246152,-167.24815434,0.00029998,2]
[329279187,1718212246165,-38988.85976821,0.00029998,2]
[329279189,1718212246176,-248.92686412,0.00029998,2]
[329279191,1718212246187,-334.29552451,0.00029998,2]
[329279193,1718212246201,-1067.92836055,0.00029998,2]
[329279195,1718212246213,-634.13477862,0.00029998,2]
[329279197,1718212246225,-13932.39983999,0.00029998,2]
[329279199,1718212246236,-235.77130805,0.00029998,2]
[329279201,1718212246252,-162.80706654,0.00029998,2]
[329279203,1718212246265,-155.0,0.00029998,2]
[329279205,1718212246277,-201.94300209,0.00029998,2]
[329279207,1718212246288,-207.8570542,0.00029998,2]
[329279209,1718212246302,-160.78646615,0.00029998,2]
[329279211,1718212246314,-1386.12618395,0.00029998,5]
[329279213,1718212246327,-155.0,0.00029998,2]
[329279215,1718212246341,-156.47913975,0.00029998,2]
[329279217,1718212246354,-544.02396794,0.00029998,2]
[329279219,1718212246367,-309.27138856,0.00029998,2]
[329279221,1718212246379,-406.13051263,0.00029998,2]
[329279223,1718212246391,-327.09364323,0.00029998,10]
[329279225,1718212246403,-160.26537688,0.00029998,2]
[329279227,1718212246415,-309145.65687177,0.00029998,2]
[329279230,1718212246430,-1810.926,0.00029998,2]
[329279232,1718212246443,-432.0,0.00029998,2]
[329279234,1718212246458,-5748.17421115,0.00029998,2]
[329279236,1718212246473,-69960.71143913,0.00029998,2]
[329279238,1718212246484,-269.06781082,0.00029998,2]
[329279239,1718212246495,-288.66023203,0.00029998,2]
[329279240,1718212246507,-156.38728002,0.00029998,2]
[329279241,1718212246518,-206.54544582,0.00029998,2]
[329279242,1718212246531,-2199.22684884,0.00029998,2]
[329279243,1718212246542,-304.8252511,0.00029998,2]
[329279244,1718212246554,-833.47563894,0.00029998,2]
[329279245,1718212246566,-9917.27745119,0.00029998,2]
[329279246,1718212246578,-169.01882893,0.00029998,2]
[329279247,1718212246589,-155.3660043,0.00029998,4]
[329279248,1718212246611,-290.01726242,0.00029998,2]
[329279249,1718212246624,-80018.40300573,0.00029998,2]
[329279250,1718212246637,-209.91917495,0.00029998,2]
[329279251,1718212246650,-4048.15782787,0.00029998,2]
[329279252,1718212246661,-150.0,0.00029998,2]
[329279253,1718212246673,-150.0,0.00029998,2]
[329279254,1718212246685,-196.84102674,0.00029999,2]
[329279255,1718212246698,-500.0,0.00029999,2]
[329279256,1718212246710,-198.76906774,0.00029999,2]
[329279257,1718212246723,-396.57076707,0.00029999,2]
[329279258,1718212246736,-489.71508461,0.00029999,2]
[329279259,1718212246749,-229.54194228,0.0003,5]
[329279260,1718212246763,-130154.55482562,0.0003,13]
[329279261,1718212246783,-48000.0,0.0003,13]
[329279262,1718212246821,-2918.75,0.0003,13]
[329279263,1718212246843,-2082.4154,0.0003,13]
[329279264,1718212246914,-2204.72580411,0.0003,13]
[329279265,1718212246931,-36077.63131791,0.0003,13]
[329279266,1718212246946,-10576.96180597,0.0003,13]
[329279267,1718212246959,-25152.30969358,0.0003,13]
[329279268,1718212246972,-242735.82963664,0.0003,13]
[329279269,1718212246985,-1562.11077063,0.0003,13]
[329279270,1718212247037,-773.95330089,0.0003,13]
[329279271,1718212247050,-365.56917696,0.0003,13]
[329279272,1718212247063,-2758.88754709,0.0003,13]
[329279273,1718212247148,-15415.84,0.00029996,2]
[329279274,1718212247390,-7416.22672899,0.00029996,2]
[329279275,1718212247405,-667.2379924,0.00029996,2]
[329279276,1718212247512,-575.98450026,0.00029996,2]
[329279277,1718212247616,-362.15276372,0.0002556,2]
[329279278,1718212247628,-556.41502118,0.00029996,2]
[329279279,1718212247733,-6762.47019835,0.00029996,2]
[329279280,1718212247861,-711.93069116,0.00029996,2]
[329279281,1718212247876,-17893.89486766,0.00029996,2]
[329279282,1718212247888,-266.2781261,0.00029996,2]
[329279283,1718212247918,-61839.82700624,0.0003,13]
[329279284,1718212247937,-2871.28224305,0.0003,13]
[329279285,1718212469765,-858.21058216,0.00031799,30]
[329279286,1718212469797,-1000.0,0.00031799,30]
[329279287,1718212469828,-1000.0,0.00031799,30]
[329279288,1718212469860,-1000.0,0.00031799,30]
[329279289,1718212469893,-1000.0,0.00031799,30]
[329279290,1718212470131,-1000.0,0.00031799,30]
[329279291,1718212470163,-1000.0,0.00031799,30]
[329279292,1718212470194,-985.42707091,0.00031799,30]
[329279293,1718212470223,-2599.0,0.00031799,120]
[329279294,1718212470256,-1624.97630536,0.00031799,30]
[329279295,1718212470284,-1740.2441,0.00031799,30]
[329279296,1718212470313,-1000.0,0.00031799,120]
[329279297,1718212470345,-1000.0,0.00031799,60]
[329279298,1718212470376,-1000.0,0.00031799,30]
[329279299,1718212470407,-1000.0,0.00031799,30]
[329279300,1718212470439,-1000.0,0.00031799,120]
[329279301,1718212470469,-1000.0,0.00031799,30]
[329279302,1718212470499,-1000.0,0.00031799,60]
[329279303,1718212470530,-1000.0,0.00031799,60]
[329279304,1718212470563,-1000.0,0.00031799,120]
[329279305,1718212470593,-1000.0,0.00031799,120]
[329279306,1718212470623,-1000.0,0.00031799,60]
[329279307,1718212470652,-1000.0,0.00031799,30]
[329279308,1718212470683,-1007.52912224,0.00031799,30]
[329279309,1718212470714,-1000.0,0.00031799,30]
[329279310,1718212470745,-1000.0,0.00031799,30]
[329279311,1718212470776,-1000.0,0.00031799,60]
[329279312,1718212470805,-1305.0051709,0.00031799,60]
[329279313,1718212470835,-1000.0,0.00031799,60]
[329279314,1718212470866,-1000.0,0.00031799,30]
[329279315,1718212470894,-1000.0,0.00031799,30]
[329279316,1718212470924,-1000.0,0.00031799,30]
[329279317,1718212470952,-1000.0,0.00031799,30]
[329279318,1718212470994,-1000.0,0.00031799,60]
[329279319,1718212471025,-1000.0,0.00031799,60]
[329279320,1718212471057,-1000.0,0.00031799,60]
[329279321,1718212471092,-1000.0,0.00031799,60]
[329279322,1718212471126,-1000.0,0.00031799,30]
[329279323,1718212471160,-1000.0,0.00031799,60]
[329279324,1718212471193,-1000.0,0.00031799,30]
[329279325,1718212471228,-1000.0,0.00031799,30]
[329279326,1718212471261,-1000.0,0.00031799,120]
[329279327,1718212471296,-1000.0,0.00031799,30]
[329279328,1718212471333,-1000.0,0.00031799,30]
[329279329,1718212471369,-1000.0,0.00031799,30]
[329279330,1718212471406,-1000.0,0.00031799,30]
[329279331,1718212471441,-1000.0,0.00031799,60]
[329279332,1718212471478,-1000.0,0.00031799,30]
[329279333,1718212471510,-1000.0,0.00031799,30]
[329279334,1718212471543,-1000.0,0.00031799,30]
[329279335,1718212471576,-1000.0,0.00031799,120]
[329279336,1718212471609,-1000.0,0.00031799,30]
[329279337,1718212471642,-1000.0,0.00031799,60]
[329279338,1718212471674,-1000.0,0.00031799,60]
[329279339,1718212471706,-1000.0,0.00031799,60]
[329279340,1718212471737,-1000.0,0.00031799,60]
[329279341,1718212471768,-1039.46,0.00031799,60]
[329279342,1718212471801,-160.0,0.00031799,30]
[329279343,1718212471835,-692.5859032,0.00031799,120]
[329279344,1718212471867,-6333.31071436,0.00031799,90]
[329279345,1718212471900,-586.19470556,0.00031799,120]
[329279346,1718212471933,-233.34685552,0.00031799,30]
[329279347,1718212471966,-999.999996,0.00031799,120]
[329279348,1718212472019,-481.6681847,0.00031799,30]
[329279349,1718212472050,-359.9869598,0.00031799,30]
[329279350,1718212472082,-525.31711583,0.00031799,60]
[329279351,1718212472112,-832.038521,0.00031799,30]
[329279352,1718212472143,-839.89435685,0.00031799,120]
[329279353,1718212472174,-1426.76292833,0.00031799,30]
[329279354,1718212472204,-696.74292591,0.00031799,30]
[329279355,1718212472235,-2697.65564489,0.00031799,30]
[329279356,1718212472266,-187.89692834,0.00031799,120]
[329279357,1718212472297,-451.82332477,0.00031799,60]
[329279358,1718212472329,-1232.74764711,0.00031799,120]
[329279359,1718212472360,-572.02929063,0.00031799,30]
[329279360,1718212472391,-1016.42497376,0.00031799,120]
[329279361,1718212472424,-814.98274506,0.00031799,30]
[329279362,1718212472461,-822.77790146,0.00031799,30]
[329279363,1718212472491,-657.89728419,0.00031799,30]
[329279364,1718212472521,-304.27041695,0.00031799,120]
[329279365,1718212472551,-619.91154445,0.00031799,120]
[329279366,1718212472584,-1152.13246204,0.00031799,60]
[329279367,1718212472613,-2640.89601505,0.00031799,30]
[329279368,1718212472643,-196.86939784,0.00031799,30]
[329279369,1718212472674,-915.57384331,0.00031799,30]
[329279370,1718212472705,-282.79513671,0.00031799,120]